bitfinex-derivatives/quotes_SOLF0:USTF0_20251107
["timestamp","ask_amount","ask_price","bid_price","bid_amount"]
[1762513022638,2.95,154.12,154.08,3.17]
[1762513022841,7.80834512,154.11,154.08,3.17]
[1762513023138,2.95,154.11,154.08,3.17]
[1762513023637,2.99388399,154.11,154.08,3.21164541]
[1762513024040,4.87851072,154.1,154.09,3.17]
[1762513024639,7.82851072,154.1,154.08,0.04164541]
[1762513024841,2.95,154.1,154.08,3.21164541]
[1762513025340,2.95,154.1,154.08,0.04164541]
[1762513025541,2.95,154.1,154.08,3.21164541]
[1762513025741,2.95,154.1,154.08,0.04164541]
[1762513025945,4.87868644,154.09,154.08,0.04164541]
[1762513026742,7.82868644,154.09,154.08,0.04164541]
[1762513027442,2.95,154.09,154.08,0.04164541]
[1762513028339,7.53624737,154.09,154.08,0.04164541]
[1762513028540,2.95,154.08,154.05,3.17]
[1762513029642,2.95,154.08,154.05,3.21913545]
[1762513029838,5.8448,154.07,154.05,0.04913545]
[1762513030045,2.95,154.06,154.05,0.04913545]
[1762513033738,8.796,154.04,154.01,3.17]
[1762513033936,2.95,154.03,154.01,3.17]
[1762513034140,9.006,154.04,154.01,3.17]
[1762513034742,9.0548236,154.04,154.01,3.21294682]
[1762513034943,3.16,154.03,154.01,3.21294682]
[1762513036245,3.16,154.03,154.01,4.77072257]
[1762513036449,0.0488236,154.04,154.02,3.01]
[1762513036756,0.0488236,154.04,154.03,4.56777575]
[1762513037343,0.0488236,154.04,154.03,5.86777575]
[1762513037542,3.16,154.08,154.04,3.01]
[1762513037946,3.16,154.13,154.04,3.01]
[1762513038140,3.16,154.11,154.05,1.55777575]
[1762513038543,3.16,154.09,154.06,3.05108228]
[1762513042342,9.04569497,154.1,154.06,3.05108228]
[1762513042646,3.16,154.09,154.06,3.05108228]
[1762513043044,9.0041,154.09,154.06,3.05108228]
[1762513043254,3.16,154.08,154.06,3.05108228]
[1762513044149,3.16,154.07,154.06,0.04108228]
[1762513044356,3.16,154.07,154.01,3.01]
[1762513045345,3.16,154.05,154.02,3.05250222]
[1762513045949,9.0057,154.05,154.02,3.05250222]
[1762513046554,3.16,154.04,154.02,3.05250222]
[1762513046746,3.16,154.04,154.02,0.04250222]
[1762513047650,3.16,154.03,154.02,0.04250222]
[1762513050142,8.11388082,154.03,154.02,0.04250222]
[1762513050353,3.16,154.03,154.02,0.04250222]
[1762513050954,8.11381914,154.03,154.02,0.04250222]
[1762513051357,3.16,154.03,154.02,0.04250222]
[1762513054358,8.11422676,154.03,154.02,0.04250222]
[1762513054556,12.7538613,154.03,154.02,0.04250222]
[1762513055253,3.16,154.02,153.98,3.01]
[1762513056054,3.2031161,154.02,153.98,0.04983539]
[1762513056954,3.2031161,154.02,153.98,3.05983539]
[1762513057760,9.0496161,154.02,153.98,3.05983539]
[1762513057956,3.2031161,154.02,153.98,3.05983539]
[1762513058161,0.0431161,154.02,154.0,3.01]
[1762513060062,0.0431161,154.02,154.01,3.07]
[1762513067772,8.855,154.07,154.02,3.16]
[1762513067977,7.97208443,154.06,154.02,3.16]
[1762513068177,3.01,154.06,154.02,3.16]
[1762513068378,4.96324806,154.05,154.02,3.16]
[1762513068580,3.01,154.06,154.02,3.16]
[1762513068771,5.00866488,154.05,154.02,3.20779473]
[1762513068972,0.04541414,154.05,154.02,3.20779473]
[1762513076980,0.04541414,154.05,154.04,3.16]
[1762513078481,1.55777575,154.16,154.07,3.16]
[1762513078482,5.8426,154.13,154.07,3.16]
[1762513078688,9.64170659,154.12,154.07,3.16]
[1762513078985,9.64170659,154.11,154.07,3.16]
[1762513079181,9.64170659,154.1,154.07,3.16]
[1762513079381,4.9708636,154.09,154.07,3.20587395]
[1762513079582,0.04615271,154.1,154.07,3.20587395]
[1762513079784,4.95645824,154.09,154.07,3.20587395]
[1762513080085,0.04615271,154.1,154.07,3.20587395]
[1762513080284,4.95645677,154.09,154.08,3.16]
[1762513082086,0.04615271,154.1,154.08,3.16]
[1762513091801,0.04615271,154.1,154.08,9.0042]
[1762513091991,0.04615271,154.1,154.09,3.16]
[1762513092995,3.01,154.14,154.09,9.0035]
[1762513093202,4.93782774,154.13,154.1,3.16]
[1762513093392,3.01,154.14,154.1,3.16]
[1762513093795,4.93643849,154.13,154.11,3.16]
[1762513093992,3.0562653,154.14,154.11,3.16]
[1762513094196,0.0462653,154.14,154.11,3.16]
[1762513098098,0.0462653,154.14,154.11,9.0031]
[1762513098400,0.0462653,154.14,154.12,3.0]
[1762513098802,5.8405,154.18,154.13,3.0]
[1762513099101,2.95,154.19,154.13,3.0]
[1762513099296,4.93427182,154.18,154.13,3.0]
[1762513099506,2.95,154.19,154.13,3.0]
[1762513099699,4.93262089,154.18,154.13,3.0]
[1762513099897,0.04343317,154.18,154.15,3.0]
[1762513102496,0.04343317,154.18,154.17,8.8408]
[1762513102698,2.95,154.27,154.18,3.0]
[1762513102901,9.54168545,154.26,154.18,3.0]
[1762513103101,4.93111026,154.25,154.18,3.0]
[1762513103293,8.7872,154.27,154.21,3.0]
[1762513103498,2.95,154.26,154.21,3.0]
[1762513103692,8.7883,154.24,154.22,0.04583773]
[1762513103897,2.95,154.23,154.21,0.04567626]
[1762513104403,2.95,154.22,154.21,0.04567626]
[1762513104600,4.25,154.22,154.21,0.04567626]
[1762513105201,2.95,154.2,154.16,3.0]
[1762513106300,2.992289,154.2,154.16,3.04854616]
[1762513108205,2.95,154.19,154.16,3.04854616]
[1762513108601,2.95,154.19,154.16,0.04854616]
[1762513108998,8.7902,154.19,154.16,0.04854616]
[1762513109199,2.95,154.18,154.16,0.04854616]
[1762513112103,2.992289,154.2,154.16,3.04854616]
[1762513113103,0.042289,154.2,154.16,3.04854616]
[1762513113505,5.882089,154.2,154.16,3.04854616]
[1762513114703,8.7902,154.19,154.16,3.04854616]
[1762513115106,2.95,154.19,154.16,3.04854616]
[1762513116113,8.7902,154.19,154.16,3.04854616]
[1762513121012,2.95,154.19,154.16,3.04854616]
[1762513127115,9.062089,154.2,154.16,3.04854616]
[1762513127918,0.042289,154.2,154.17,3.06]
[1762513130009,5.8385,154.24,154.17,3.06]
[1762513130010,5.8385,154.24,154.19,3.06]
[1762513130222,3.18,154.25,154.19,3.06]
[1762513130528,4.91605222,154.24,154.19,3.06]
[1762513130724,9.0178,154.25,154.2,5.8396]
[1762513131016,4.95773695,154.24,154.21,3.06]
[1762513131213,0.04222567,154.24,154.21,3.10206243]
[1762513131413,0.04222567,154.24,154.21,8.94136243]
[1762513131720,0.04222567,154.24,154.22,3.06]
[1762513134519,3.18,154.23,154.21,3.10206243]
[1762513134717,3.18,154.23,154.21,0.04206243]
[1762513134919,3.18,154.22,154.21,0.04206243]
[1762513136213,4.48,154.22,154.21,0.04206243]
[1762513136426,9.40495401,154.22,154.21,0.04206243]
[1762513138213,14.07703831,154.22,154.21,0.04206243]
[1762513140427,12.77703831,154.22,154.21,0.04206243]
[1762513149536,9.59703831,154.22,154.21,0.04206243]
[1762513149738,9.59703831,154.22,154.21,3.10206243]
[1762513151638,4.92495401,154.22,154.21,3.10206243]
[1762513151832,0.04222567,154.24,154.21,3.10206243]
[1762513152032,9.61608253,154.23,154.21,3.10206243]
[1762513152237,0.04222567,154.24,154.21,3.10206243]
[1762513152433,9.61335865,154.23,154.22,3.06]
[1762513152841,0.04222567,154.24,154.23,3.06]
[1762513153042,9.65613127,154.24,154.23,3.06]
[1762513153543,3.18,154.28,154.24,3.06]
[1762513153737,9.60990686,154.27,154.24,3.06]
[1762513153933,9.60990686,154.26,154.24,3.06]
[1762513154138,9.60990686,154.25,154.24,3.06]
[1762513154340,8.8866,154.29,154.24,8.8981]
[1762513154641,8.8866,154.29,154.25,3.04908445]
[1762513154642,9.65057001,154.28,154.25,3.04908445]
[1762513154942,4.67673624,154.27,154.25,3.04908445]
[1762513155140,0.04297497,154.28,154.25,3.04908445]
[1762513155344,4.6771074,154.27,154.25,3.04908445]
[1762513155543,0.04297497,154.28,154.25,3.04908445]
[1762513155747,4.6753757,154.27,154.25,3.04908445]
[1762513155939,0.04297497,154.28,154.25,3.04908445]
[1762513156245,4.67508525,154.27,154.25,3.04908445]
[1762513156545,0.04297497,154.28,154.25,3.04908445]
[1762513156849,4.67303013,154.27,154.25,3.04908445]
[1762513157038,0.04297497,154.28,154.25,3.04908445]
[1762513157238,4.67413804,154.27,154.25,3.04908445]
[1762513157436,0.04297497,154.28,154.25,3.04908445]
[1762513157636,4.67284983,154.27,154.25,3.04908445]
[1762513157837,0.04297497,154.28,154.25,3.04908445]
[1762513158048,4.67285271,154.27,154.26,3.0]
[1762513158347,0.04297497,154.28,154.26,3.0]
[1762513159044,0.04297497,154.28,154.26,8.8373]
[1762513159244,0.04297497,154.28,154.25,0.04908445]
[1762513159245,3.09297497,154.28,154.25,3.04908445]
[1762513160643,3.05,154.27,154.25,3.04908445]
[1762513161148,3.05,154.27,154.25,0.04908445]
[1762513162046,8.8871,154.27,154.25,0.04908445]
[1762513162245,3.05,154.26,154.25,0.04908445]
[1762513162541,7.67084412,154.26,154.25,0.04908445]
[1762513162844,5.8371,154.27,154.25,0.04908445]
[1762513162845,8.8871,154.27,154.25,3.04908445]
[1762513163046,8.8871,154.27,154.25,0.04908445]
[1762513163341,7.67046911,154.26,154.25,0.04908445]
[1762513164249,3.05,154.26,154.25,0.04908445]
[1762513166042,7.67188349,154.26,154.25,0.04908445]
[1762513166345,12.57163521,154.26,154.25,0.04908445]
[1762513166650,12.57252287,154.26,154.25,0.04908445]
[1762513167246,7.94975172,154.26,154.25,0.04908445]
[1762513167743,12.57288612,154.26,154.25,0.04908445]
[1762513173644,7.94975172,154.26,154.25,0.04908445]
[1762513178159,3.05,154.23,154.19,4.55370551]
[1762513178358,3.05,154.23,154.2,3.0]
[1762513178562,8.8882,154.24,154.2,3.0]
[1762513178761,5.00292825,154.23,154.2,3.0]
[1762513178961,3.05,154.24,154.2,3.0]
[1762513179267,5.00632536,154.23,154.2,3.04751794]
[1762513179460,3.09701192,154.24,154.2,3.04751794]
[1762513179762,5.00753577,154.23,154.2,3.04751794]
[1762513179964,3.09701192,154.24,154.2,3.04751794]
[1762513182067,3.09701192,154.24,154.2,8.88721794]
[1762513182273,3.09701192,154.24,154.21,3.2]
[1762513182963,3.08701192,154.24,154.21,3.2]
[1762513188474,3.21,154.23,154.2,0.04751794]
[1762513188677,3.21,154.21,154.2,0.04751794]
[1762513191080,8.22476202,154.21,154.2,0.04751794]
[1762513193368,12.89181396,154.21,154.2,0.04751794]
[1762513201578,5.8401,154.19,154.14,3.1]
[1762513201782,3.21,154.18,154.14,3.1]
[1762513202675,3.25674304,154.18,154.14,3.14625776]
[1762513203076,9.09734304,154.18,154.14,3.14625776]
[1762513203282,3.21,154.17,154.14,3.14625776]
[1762513204885,3.21,154.17,154.14,0.04625776]
[1762513205074,3.21,154.15,154.14,0.04625776]
[1762513206476,3.21,154.14,154.11,3.1]
[1762513207481,3.25467587,154.14,154.11,3.14570438]
[1762513208282,3.25467587,154.14,154.12,3.1]
[1762513208883,3.25467587,154.14,154.11,0.04570438]
[1762513209083,3.25467587,154.14,154.11,3.14570438]
[1762513210086,3.25467587,154.14,154.12,5.8426]
[1762513210287,0.04467587,154.14,154.13,3.1]
[1762513214188,3.21467587,154.14,154.11,0.04570438]
[1762513214894,3.17,154.12,154.11,0.04570438]
[1762513218087,3.17,154.11,154.06,8.9347]
[1762513218784,3.17,154.09,154.06,8.9347]
[1762513219090,3.21882912,154.09,154.06,0.0481578]
[1762513219488,3.17,154.08,154.06,0.0481578]
[1762513220690,9.0144,154.08,154.06,0.0481578]
[1762513220894,3.17,154.07,154.06,0.0481578]
[1762513222298,3.17,154.06,154.01,68.29]
[1762513222689,3.17,154.06,154.0,5.847]
[1762513222997,3.17,154.04,153.98,8.9378]
[1762513223197,3.17,154.04,153.95,3.09]
[1762513223399,3.21879454,154.01,153.98,0.04836684]
[1762513223594,3.21879454,154.01,153.98,0.04935806]
[1762513223595,3.2167416,154.01,153.98,0.04935806]
[1762513224387,0.0467416,154.01,153.98,3.13935806]
[1762513224593,0.0467416,154.01,153.99,1.3]
[1762513224798,0.0467416,154.01,154.0,3.09]
[1762513226002,0.0467416,154.01,153.99,3.09]
[1762513228393,0.0467416,154.01,154.0,3.09]
[1762513228593,0.0467416,154.01,154.0,4.39]
[1762513229589,0.0467416,154.01,154.0,3.09]
[1762513230192,0.0467416,154.01,154.0,4.39]
[1762513230391,3.17,154.07,154.01,3.09]
[1762513230700,3.17,154.11,154.03,3.09]
[1762513231200,3.17,154.11,154.05,5.8452]
[1762513231404,3.2165221,154.09,154.05,8.98423045]
[1762513231602,3.2165221,154.09,154.05,3.13903045]
[1762513233101,3.2165221,154.09,154.05,0.04903045]
[1762513235102,3.17,154.06,154.05,0.04903045]
[1762513237005,0.0465221,154.09,154.05,4.43903045]
[1762513237298,3.2165221,154.09,154.05,0.04903045]
[1762513237703,3.17,154.07,154.05,0.04903045]
[1762513238103,9.0148,154.07,154.05,0.04903045]
[1762513238407,3.17,154.06,154.05,0.04903045]
[1762513239314,5.8906221,154.09,154.05,3.17903045]
[1762513239315,3.26,154.08,154.05,3.17903045]
[1762513239805,3.26,154.08,154.05,0.04903045]
[1762513241204,3.26,154.06,154.05,0.04903045]
[1762513241702,8.22655625,154.06,154.05,0.04903045]
[1762513242003,8.22655625,154.06,153.99,8.9775]
[1762513242205,3.26,154.03,154.0,3.13]
[1762513243106,3.30186933,154.03,154.0,3.17677858]
[1762513243301,9.14806933,154.03,154.0,3.17677858]
[1762513243804,9.14806933,154.03,154.0,0.04677858]
[1762513243805,3.30186933,154.03,154.0,0.04677858]
[1762513245108,3.17,154.01,154.0,0.04677858]
[1762513245410,3.17,154.0,153.94,2.98]
[1762513245711,3.17,153.98,153.94,8.8294]
[1762513246103,3.17,154.0,153.96,2.98]
[1762513246309,3.21530313,154.0,153.96,3.02652868]
[1762513247109,0.04530313,154.0,153.97,2.98]
[1762513248013,0.04530313,154.0,153.98,5.8479]
[1762513248215,0.04530313,154.0,153.99,2.98]
[1762513249517,3.21530313,154.0,153.97,2.98]
[1762513250113,0.04530313,154.0,153.97,2.98]
[1762513254014,0.04530313,154.0,153.99,2.98]
[1762513254223,3.17,154.06,153.99,2.98]
[1762513254423,4.99143331,154.05,153.99,2.98]
[1762513254619,3.17,154.06,153.99,2.98]
[1762513254920,4.99174487,154.05,153.99,2.98]
[1762513255113,3.17,154.06,154.02,2.98]
[1762513255309,4.99174527,154.05,154.02,2.98]
[1762513255513,0.04124247,154.05,154.02,3.02310719]
[1762513256825,3.21124247,154.05,154.02,3.02310719]
[1762513257521,3.21124247,154.05,154.02,0.04310719]
[1762513258227,3.21124247,154.05,154.02,3.02310719]
[1762513259224,5.00556828,154.04,154.02,3.02310719]
[1762513259426,3.21124247,154.05,154.02,3.02310719]
[1762513259726,5.00878568,154.04,154.02,3.02310719]
[1762513259928,3.21124247,154.05,154.02,3.02310719]
[1762513260521,5.0079754,154.04,154.02,3.02310719]
[1762513260716,3.21124247,154.05,154.02,3.02310719]
[1762513260915,5.00757009,154.04,154.02,3.02310719]
[1762513261127,3.21124247,154.05,154.02,3.02310719]
[1762513261322,5.00912061,154.04,154.02,3.02310719]
[1762513261516,3.21124247,154.05,154.02,3.02310719]
[1762513261720,5.01053779,154.04,154.02,3.02310719]
[1762513262026,3.17,154.04,154.02,3.02310719]
[1762513262629,3.17,154.04,154.02,0.04310719]
[1762513263317,5.88674247,154.05,154.02,3.02310719]
[1762513263520,5.01462074,154.04,154.02,3.02310719]
[1762513263723,9.05674247,154.05,154.02,3.02310719]
[1762513263924,5.01462598,154.04,154.02,3.02310719]
[1762513264126,12.87591591,154.03,154.02,0.04310719]
[1762513264325,3.17,154.02,153.98,2.98]
[1762513264525,8.18440232,154.01,153.98,2.98]
[1762513264835,3.17,154.01,153.98,2.98]
[1762513265330,3.216888,154.01,153.98,3.02819055]
[1762513266331,0.046888,154.01,153.98,3.02819055]
[1762513266528,0.046888,154.01,154.0,2.98]
[1762513268938,5.0640429,154.01,153.99,2.98]
[1762513269135,3.216888,154.01,153.98,0.04819055]
[1762513269340,5.01774752,154.0,153.98,0.04819055]
[1762513269535,3.216888,154.01,153.98,0.04819055]
[1762513269832,5.01980176,154.0,153.98,0.04819055]
[1762513270032,9.063888,154.01,153.98,0.04819055]
[1762513270241,5.0206086,154.0,153.98,0.04819055]
[1762513270432,5.8473,154.0,153.98,0.04819055]
[1762513271333,9.0173,154.0,153.98,0.04819055]
[1762513272035,3.17,154.0,153.98,0.04819055]
[1762513272931,3.17,153.99,153.98,0.04819055]
[1762513273138,3.17,153.98,153.94,65.18]
[1762513273441,3.17,153.98,153.94,74.0095]
[1762513273832,3.17,153.98,153.94,68.16]
[1762513274135,3.21390624,153.98,153.95,8.8291]
[1762513278336,3.21390624,153.98,153.95,2.98]
[1762513278543,3.21390624,153.98,153.94,68.18417964]
[1762513278746,5.02277227,153.97,153.94,68.18417964]
[1762513279043,3.27,153.97,153.94,68.18417964]
[1762513280538,3.27,153.97,153.95,2.96]
[1762513281042,3.27,153.97,153.94,68.18417964]
[1762513282739,3.27,153.97,153.94,65.22417964]
[1762513282935,3.27,153.96,153.94,65.22417964]
[1762513283644,3.27,153.96,153.85,11.7054]
[1762513283645,3.27,153.94,153.85,2.96]
[1762513283843,3.27,153.91,153.85,2.2728676]
[1762513284048,9.1219,153.88,153.82,7.41278957]
[1762513284246,3.27,153.88,153.81,17.42]
[1762513284756,3.31493432,153.86,153.83,0.02514748]
[1762513285758,3.27,153.85,153.83,0.02514748]
[1762513286359,3.27,153.82,153.77,2.96]
[1762513286958,3.27,153.8,153.76,4.54]
[1762513287154,3.27,153.8,153.74,1.55898957]
[1762513287356,3.27,153.78,153.74,4.51898957]
[1762513288360,0.04859335,153.79,153.75,2.96]
[1762513288565,0.04859335,153.79,153.76,4.51898957]
[1762513288767,0.04859335,153.79,153.77,2.96]
[1762513292758,3.31859335,153.79,153.75,2.96]
[1762513296467,3.31859335,153.79,153.72,4.51898957]
[1762513297278,3.27,153.78,153.72,4.51898957]
[1762513299481,3.08,153.77,153.72,4.51898957]
[1762513301078,3.08,153.76,153.72,4.51898957]
[1762513301375,3.12324943,153.76,153.73,3.06]
[1762513301680,3.12324943,153.76,153.72,4.61898957]
[1762513303579,3.08,153.75,153.69,4.61898957]
[1762513303779,3.08,153.75,153.69,3.06]
[1762513304377,3.08,153.75,153.68,65.26]
[1762513304881,3.13,153.71,153.63,3.06]
[1762513305078,3.17482312,153.69,153.63,3.06]
[1762513305381,3.13,153.68,153.63,3.06]
[1762513305578,3.13,153.68,153.52,11.731]
[1762513305783,0.04219019,153.63,153.62,3.06]
[1762513305975,0.04463916,153.64,153.62,3.06]
[1762513306376,0.04463916,153.64,153.62,8.9216]
[1762513307073,3.13,153.68,153.65,4.35086084]
[1762513307279,3.13,153.72,153.66,3.06]
[1762513307475,3.13,153.72,153.67,3.06]
[1762513307676,3.13,153.72,153.68,3.06]
[1762513307878,1.55898957,153.77,153.68,3.06]
[1762513308074,0.04182783,153.74,153.71,0.04571558]
[1762513308381,3.17182783,153.74,153.71,0.04571558]
[1762513311486,3.13,153.72,153.71,0.04571558]
[1762513313292,8.9877,153.73,153.71,0.04571558]
[1762513313888,3.13,153.73,153.71,0.04571558]
[1762513314298,3.17182783,153.74,153.71,0.04571558]
[1762513315089,9.02912783,153.74,153.71,0.04571558]
[1762513315895,0.04182783,153.74,153.71,3.10571558]
[1762513316202,0.04182783,153.74,153.72,3.06]
[1762513316789,0.04182783,153.74,153.72,8.9178]
[1762513316997,0.04182783,153.74,153.73,4.61898957]
[1762513317302,4.93216025,153.81,153.74,3.06]
[1762513317303,3.13,153.81,153.74,3.06]
[1762513317599,3.13,153.84,153.77,4.61898957]
[1762513317893,4.93715111,153.83,153.79,3.06]
[1762513318104,286.4672641,153.87,153.8,3.06]
[1762513318286,0.04304456,153.83,153.8,3.06]
[1762513319092,0.04304456,153.83,153.82,3.06]
[1762513319895,6.0149054,153.9,153.83,3.06]
[1762513319896,3.13,153.9,153.83,3.06]
[1762513320190,7.94180333,153.93,153.74,96.6137]
[1762513320191,9.1449054,153.93,153.85,3.06]
[1762513320391,4.95867583,153.92,153.85,3.06]
[1762513320591,4.95867583,153.91,153.85,3.06]
[1762513320785,5.00553796,153.9,153.86,0.04313759]
[1762513320990,8.08844654,153.89,153.86,0.04313759]
[1762513321193,8.08844654,153.88,153.86,0.04313759]
[1762513321399,4.95844654,153.87,153.86,0.04313759]
[1762513321990,3.13,153.86,153.8,3.06]
[1762513322192,3.13,153.84,153.8,3.06]
[1762513322402,4.95844654,153.83,153.8,3.06]
[1762513322596,3.13,153.84,153.8,3.06]
[1762513322900,4.97244061,153.83,153.8,3.06]
[1762513323106,4.97244061,153.82,153.8,3.1097358]
[1762513323298,0.04729189,153.83,153.8,3.1097358]
[1762513323599,8.1111319,153.82,153.8,0.0497358]
[1762513323798,4.9811319,153.81,153.8,0.0497358]
[1762513324690,4.9811319,153.81,153.8,3.1097358]
[1762513324896,0.04729189,153.83,153.81,3.06]
[1762513326794,5.00039944,153.82,153.81,3.06]
[1762513327907,5.00039944,153.82,153.8,0.0497358]
[1762513328200,5.00039944,153.81,153.8,0.0497358]
[1762513328803,8.13039944,153.81,153.8,0.0497358]
[1762513330210,12.81684391,153.81,153.8,0.0497358]
[1762513331204,8.13039944,153.81,153.8,0.0497358]
[1762513332006,12.8157841,153.81,153.8,0.0497358]
[1762513333308,3.13,153.8,153.75,3.06]
[1762513333610,3.13,153.78,153.72,68.74]
[1762513333808,5.00039944,153.77,153.73,3.06]
[1762513334010,5.00039944,153.76,153.73,3.06]
[1762513334205,3.13,153.78,153.73,3.06]
[1762513334403,5.04987056,153.77,153.74,0.03771457]
[1762513334604,0.04244614,153.77,153.74,0.03771457]
[1762513334810,0.04244614,153.77,153.74,3.22771457]
[1762513337308,5.99416817,153.84,153.76,3.19]
[1762513337512,5.99416817,153.88,153.82,3.19]
[1762513337709,283.28326439,153.89,153.82,3.19]
[1762513337905,5.00730196,153.88,153.82,3.19]
[1762513338219,3.27,153.89,153.83,3.19]
[1762513338417,5.00484616,153.88,153.83,3.19]
[1762513338712,3.27,153.89,153.84,0.04483671]
[1762513338920,0.04406487,153.87,153.84,3.23483671]
[1762513339718,3.31406487,153.87,153.84,0.04483671]
[1762513340819,9.16636487,153.87,153.84,0.04483671]
[1762513341014,3.31406487,153.87,153.84,0.04483671]
[1762513341519,0.04406487,153.87,153.84,3.23483671]
[1762513344925,0.04406487,153.87,153.84,9.08813671]
[1762513345125,0.04406487,153.87,153.85,3.19]
[1762513346018,0.04406487,153.87,153.84,3.23483671]
[1762513348925,0.04406487,153.87,153.84,9.08803671]
[1762513349331,0.04406487,153.87,153.85,3.19]
[1762513350931,8.26665736,153.94,153.87,3.19]
[1762513351131,4.65704728,153.96,153.87,3.19]
[1762513351327,3.27,153.97,153.87,3.19]
[1762513351631,5.8491,153.96,153.9,3.19]
[1762513352034,5.8491,153.96,153.86,65.7]
[1762513352035,0.04763117,153.95,153.91,3.2340509]
[1762513352436,9.16683117,153.95,153.91,3.2340509]
[1762513352832,3.31763117,153.95,153.91,3.2340509]
[1762513353037,5.85,153.93,153.91,0.0440509]
[1762513353340,9.12,153.93,153.91,0.0440509]
[1762513353735,9.1211,153.9,153.85,9.0427]
[1762513353933,3.27,153.9,153.85,3.19]
[1762513354432,5.8515,153.89,153.85,3.19]
[1762513354733,5.8515,153.89,153.85,3.23487403]
[1762513354734,5.89807991,153.89,153.85,3.23487403]
[1762513355128,0.04657991,153.89,153.85,3.23487403]
[1762513356237,0.04657991,153.89,153.85,9.08777403]
[1762513356439,0.04657991,153.89,153.86,3.19]
[1762513356838,0.04657991,153.89,153.86,9.0425]
[1762513357841,3.31657991,153.89,153.85,3.23487403]
[1762513358938,3.31657991,153.89,153.85,9.08777403]
[1762513359238,3.31657991,153.89,153.86,3.19]
[1762513359433,0.04657991,153.89,153.86,3.19]
[1762513360643,3.13657991,153.89,153.85,3.28487403]
[1762513360940,5.01864437,153.88,153.85,3.28487403]
[1762513361137,3.09,153.88,153.85,3.28487403]
[1762513361339,3.09,153.86,153.85,0.04487403]
[1762513362248,8.11519705,153.86,153.85,0.04487403]
[1762513365642,12.79837432,153.86,153.85,0.04487403]
[1762513365944,3.12,153.85,153.81,3.11]
[1762513366142,5.02519705,153.84,153.81,3.11]
[1762513366332,8.972,153.88,153.81,3.11]
[1762513366533,5.02416014,153.87,153.81,3.11]
[1762513366740,0.04331299,153.86,153.85,8.9629]
[1762513366940,0.04899506,153.87,153.85,8.9629]
[1762513367133,0.04899506,153.87,153.86,3.11]
[1762513369247,0.04899506,153.87,153.86,4.41]
[1762513369443,4.68665573,153.93,153.88,3.11]
[1762513369748,5.02900543,153.92,153.88,3.11]
[1762513369940,3.12,153.94,153.88,3.11]
[1762513370142,9.71197025,153.93,153.88,3.11]
[1762513370345,0.04305681,153.92,153.9,3.11]
[1762513370950,0.04305681,153.92,153.9,8.961]
[1762513371653,0.04305681,153.92,153.9,3.11]
[1762513374348,0.04305681,153.92,153.89,5.89412959]
[1762513374349,3.16305681,153.92,153.89,0.04272959]
[1762513374954,3.12,153.9,153.89,0.04272959]
[1762513375156,3.12,153.9,153.86,3.11]
[1762513375353,3.12,153.9,153.75,11.7134]
[1762513375354,5.8523,153.87,153.82,5.854]
[1762513375653,5.8523,153.87,153.83,3.11]
[1762513376044,8.9723,153.87,153.83,3.11]
[1762513376242,9.01639053,153.87,153.83,3.15156613]
[1762513377052,3.16409053,153.87,153.83,3.15156613]
[1762513378057,3.16409053,153.87,153.84,3.11]
[1762513379059,0.04409053,153.87,153.84,3.11]
[1762513380656,3.16409053,153.87,153.83,3.15156613]
[1762513381052,5.05346032,153.86,153.83,3.15156613]
[1762513381353,5.05804193,153.85,153.83,3.15156613]
[1762513381558,3.16409053,153.87,153.83,3.15156613]
[1762513381752,5.05875293,153.86,153.83,3.15156613]
[1762513382056,0.04409053,153.87,153.83,3.15156613]
[1762513382251,5.06357308,153.86,153.83,3.15156613]
[1762513382556,0.04409053,153.87,153.83,3.15156613]
[1762513382750,5.05985179,153.86,153.84,3.11]
[1762513382950,0.04409053,153.87,153.84,3.11]
[1762513383152,5.05922979,153.86,153.84,3.11]